bitfinex-derivatives/quotes_BTCF0:USTF0_20250308
["timestamp","ask_amount","ask_price","bid_price","bid_amount"]
[1741420739917,0.26873235,86103.0,86102.0,0.24101061]
[1741420740110,0.20344448,86103.0,86102.0,0.32151061]
[1741420740313,0.15240897,86103.0,86102.0,0.32151061]
[1741420740715,0.15240897,86103.0,86102.0,0.23760934]
[1741420744718,0.0396,86105.0,86102.0,0.12145874]
[1741420744920,0.0389,86104.0,86103.0,0.15710754]
[1741420745120,0.3997,86104.0,86103.0,0.15710754]
[1741420745322,0.3997,86104.0,86103.0,0.23230754]
[1741420745624,0.0389,86104.0,86103.0,0.11615874]
[1741420745828,0.3997,86104.0,86103.0,0.11615874]
[1741420747017,0.5158479,86104.0,86103.0,0.04095874]
[1741420747220,0.5534479,86104.0,86103.0,0.04095874]
[1741420747525,0.9142479,86104.0,86103.0,0.04095874]
[1741420749128,0.1926479,86104.0,86103.0,0.04095874]
[1741420749328,0.9142479,86104.0,86103.0,0.04095874]
[1741420750421,1.0642479,86104.0,86103.0,0.04095874]
[1741420750723,1.06665687,86104.0,86103.0,0.04095874]
[1741420753919,1.58675687,86104.0,86103.0,0.04095874]
[1741420756436,0.1161775,86082.0,86081.0,0.08390127]
[1741420756634,0.41167098,86082.0,86081.0,0.08390127]
[1741420756830,0.41167098,86082.0,86081.0,0.12487277]
[1741420757134,0.54044257,86082.0,86081.0,0.12487277]
[1741420757733,0.54044257,86082.0,86081.0,0.12787277]
[1741420757933,0.54044257,86082.0,86081.0,0.0439715]
[1741420758333,0.54044257,86082.0,86081.0,0.1193715]
[1741420758840,0.54044257,86082.0,86081.0,0.1183715]
[1741420762338,0.1940775,86082.0,86081.0,0.1183715]
[1741420762536,0.57292237,86082.0,86081.0,0.1183715]
[1741420766039,0.37884487,86082.0,86081.0,0.1183715]
[1741420766927,0.01804487,86082.0,86081.0,0.1183715]
[1741420767142,0.3608,86084.0,86081.0,0.08829373]
[1741420767338,0.3776268,86084.0,86082.0,0.01089373]
[1741420767640,0.3776268,86084.0,86081.0,0.0774]
[1741420767841,0.4357147,86084.0,86082.0,0.04087562]
[1741420768227,0.5518895,86084.0,86083.0,0.11867562]
[1741420768433,0.4357147,86084.0,86083.0,0.11867562]
[1741420768736,4.216e-05,90790.0,86083.0,0.11867562]
[1741420768737,0.3608,86100.0,86089.0,0.1161681]
[1741420768936,0.3608,86100.0,86083.0,0.19435562]
[1741420768937,0.3608,86110.0,86095.0,0.1]
[1741420769239,0.038,86109.0,86096.0,0.15757562]
[1741420769440,0.1161442,86107.0,86098.0,0.1]
[1741420769742,0.038,86109.0,86099.0,0.04087562]
[1741420770236,0.1161462,86106.0,86100.0,0.08177562]
[1741420770438,0.1161462,86106.0,86101.0,0.40167562]
[1741420770739,0.1161462,86106.0,86102.0,0.04087562]
[1741420770946,0.1161462,86106.0,86103.0,0.04087562]
[1741420771245,0.1161462,86106.0,86104.0,0.04087562]
[1741420771442,0.1171462,86106.0,86105.0,0.08177562]
[1741420771844,0.1161462,86106.0,86105.0,0.08177562]
[1741420772043,0.001,86106.0,86105.0,0.08177562]
[1741420773544,0.1171452,86106.0,86105.0,0.08177562]
[1741420777336,0.001,86106.0,86105.0,0.08177562]
[1741420778942,0.001,86106.0,86105.0,0.19792212]
[1741420779147,0.001,86106.0,86105.0,0.29792212]
[1741420780642,0.001,86106.0,86105.0,0.39792212]
[1741420781037,0.01721677,86107.0,86106.0,0.1161452]
[1741420781233,0.00017418,86111.0,86110.0,0.1161398]
[1741420781434,0.00017418,86111.0,86110.0,0.3161398]
[1741420781748,0.00017418,86111.0,86110.0,0.35701542]
[1741420781947,0.00017418,86111.0,86110.0,0.43751542]
[1741420782347,0.01684074,86111.0,86110.0,0.43751542]
[1741420782543,0.01684074,86111.0,86110.0,0.33751542]
[1741420783147,0.01684074,86111.0,86110.0,0.43751542]
[1741420783852,0.01784074,86111.0,86110.0,0.43751542]
[1741420790656,0.01784074,86111.0,86110.0,0.33751542]
[1741420791062,0.01784074,86111.0,86110.0,0.43751542]
[1741420791458,0.0369,86120.0,86118.0,0.116129]
[1741420791661,0.0392,86126.0,86124.0,0.1161203]
[1741420791862,0.0392,86126.0,86125.0,0.11957562]
[1741420792164,0.05608886,86126.0,86125.0,0.11957562]
[1741420792763,0.0580597,86125.0,86109.0,4e-05]
[1741420792961,0.3608,86112.0,86109.0,4e-05]
[1741420793161,0.1149,86111.0,86110.0,0.04053283]
[1741420793351,0.2310384,86111.0,86110.0,0.04053283]
[1741420793751,0.1149,86111.0,86110.0,0.04053283]
[1741420795962,0.1149,86111.0,86110.0,0.07883283]
[1741420796865,0.0753,86111.0,86110.0,0.29497263]
[1741420797368,0.001,86112.0,86110.0,0.49497263]
[1741420797568,0.0402,86117.0,86116.0,0.2161317]
[1741420797864,0.0384,86125.0,86116.0,0.33238453]
[1741420798071,0.0384,86125.0,86124.0,0.1161209]
[1741420798271,0.0384,86125.0,86124.0,0.25665373]
[1741420798770,0.0384,86125.0,86124.0,0.04053283]
[1741420798965,0.1545195,86125.0,86124.0,0.04053283]
[1741420799268,0.2346195,86125.0,86124.0,0.04053283]
[1741420800384,0.2346195,86125.0,86120.0,4e-05]
[1741420800385,0.1185,86125.0,86120.0,4e-05]
[1741420800688,0.1151209,86124.0,86120.0,4e-05]
[1741420801191,0.1151209,86124.0,86121.0,0.04023185]
[1741420801192,0.0779,86123.0,86121.0,0.04023185]
[1741420801584,0.0779,86123.0,86122.0,0.04023185]
[1741420804982,0.0809,86123.0,86122.0,0.04123185]
[1741420805885,0.0809,86123.0,86122.0,0.03078326]
[1741420806584,0.0799,86123.0,86122.0,0.03078326]
[1741420807283,0.0799,86123.0,86122.0,0.0273004]
[1741420808389,0.0799,86123.0,86122.0,0.03589311]
[1741420809296,0.2875492,86127.0,86122.0,0.03589311]
[1741420809486,0.2875492,86127.0,86123.0,0.0263004]
[1741420809684,0.2875492,86127.0,86124.0,0.0263004]
[1741420809887,0.20776143,86127.0,86125.0,0.0263004]
[1741420810191,0.20776143,86127.0,86126.0,0.0263004]
[1741420810983,0.20976143,86127.0,86126.0,0.0263004]
[1741420811191,0.20976143,86127.0,86126.0,0.1424186]
[1741420811396,0.20776143,86127.0,86126.0,0.1424186]
[1741420811698,0.20976143,86127.0,86126.0,0.0273004]
[1741420811882,0.20976143,86127.0,86126.0,0.1434186]
[1741420812082,0.20976143,86127.0,86126.0,0.0273004]
[1741420812287,0.22682152,86127.0,86126.0,0.1434186]
[1741420812888,0.26552152,86127.0,86126.0,0.1434186]
[1741420813297,0.26552152,86127.0,86126.0,0.0273004]
[1741420813992,0.48322152,86127.0,86126.0,0.0273004]
[1741420816191,0.59933832,86127.0,86126.0,0.0273004]
[1741420816692,0.1161251,86121.0,86088.0,0.0580843]
[1741420816900,0.3608,86112.0,86110.0,0.1161392]
[1741420817191,0.3598,86112.0,86111.0,0.0403258]
[1741420817389,0.28000111,86112.0,86111.0,0.0403258]
[1741420817590,0.18569315,86112.0,86104.0,4e-05]
[1741420817788,0.0787,86111.0,86104.0,0.1161874]
[1741420817993,0.18459393,86112.0,86105.0,0.1161465]
[1741420818393,0.09028556,86112.0,86105.0,0.3608]
[1741420818586,0.09028556,86112.0,86106.0,0.1161448]
[1741420819190,0.09528556,86112.0,86106.0,0.1161448]
[1741420819496,0.09528556,86112.0,86105.0,0.3608]
[1741420819707,0.09528556,86112.0,86108.0,0.1161418]
[1741420819894,0.09528556,86112.0,86108.0,0.1161424]
[1741420820094,0.09528556,86112.0,86109.0,0.0401]
[1741420820790,0.09428556,86112.0,86109.0,0.0401]
[1741420820999,0.09428556,86112.0,86110.0,0.1161386]
[1741420821195,0.0729,86111.0,86109.0,0.0401]
[1741420821895,0.0729,86111.0,86110.0,0.1161398]
[1741420822089,0.0729,86111.0,86109.0,0.0401]
[1741420822490,0.0779,86111.0,86109.0,0.0401]
[1741420822690,0.4387,86111.0,86109.0,0.0401]
[1741420823607,0.4387,86111.0,86110.0,0.1161398]
[1741420824202,0.4028,86111.0,86110.0,0.1161398]
[1741420824390,0.4028,86111.0,86109.0,0.0401]
[1741420824391,0.005,86111.0,86109.0,0.0401]
[1741420824588,0.005,86111.0,86110.0,0.2515091]
[1741420825495,0.00079,86115.0,86114.0,0.1161344]
[1741420826394,0.00079,86115.0,86114.0,0.1572344]
[1741420827396,0.00017418,86117.0,86114.0,0.4019]
[1741420827599,0.00017418,86117.0,86116.0,0.1161317]
[1741420827993,0.00017418,86117.0,86116.0,0.1572317]
[1741420831407,0.00417418,86117.0,86116.0,0.1572317]
[1741420831907,0.03226418,86125.0,86124.0,0.1161209]
[1741420832799,0.03226418,86125.0,86124.0,0.1948209]
[1741420834599,0.07532,86128.0,86124.0,0.0787]
[1741420834795,0.07532,86128.0,86126.0,0.1161182]
[1741420835107,0.07532,86128.0,86127.0,0.1939168]
[1741420836306,0.09715676,86128.0,86127.0,0.1939168]
[1741420836510,0.055772,86128.0,86127.0,0.1939168]
[1741420836811,0.0384,86128.0,86127.0,0.1939168]
[1741420838409,0.0384,86128.0,86127.0,0.1949168]
[1741420839002,0.05949024,86128.0,86127.0,0.1949168]
[1741420841906,0.04788024,86128.0,86127.0,0.1949168]
[1741420843111,0.02109024,86128.0,86127.0,0.1949168]
[1741420843313,0.00017418,86133.0,86130.0,0.0580559]
[1741420843514,0.02158475,86133.0,86132.0,0.1161101]
[1741420843718,0.23446433,86138.0,86137.0,0.1161034]
[1741420844711,0.15950433,86138.0,86137.0,0.1947034]
[1741420845014,0.07973202,86138.0,86137.0,0.1947034]
[1741420845216,0.0386,86142.0,86140.0,0.0580492]
[1741420845516,0.05971195,86142.0,86141.0,0.195098]
[1741420847709,0.02111195,86142.0,86141.0,0.195098]
[1741420848016,0.07492,86143.0,86142.0,0.1160966]
[1741420848214,0.07492,86143.0,86142.0,0.1938966]
[1741420848810,0.0966889,86143.0,86142.0,0.1938966]
[1741420849418,0.0966889,86143.0,86142.0,0.1948966]
[1741420851913,0.07767418,86146.0,86145.0,0.1160926]
[1741420852212,0.09850342,86146.0,86145.0,0.1160926]
[1741420852914,0.09850342,86146.0,86145.0,0.1939926]
[1741420853120,0.01873272,86146.0,86145.0,0.1939926]
[1741420853322,0.43672001,86149.0,86147.0,0.1160899]
[1741420853713,0.29177631,86148.0,86147.0,0.1160899]
[1741420854925,0.29177631,86148.0,86147.0,0.1170899]
[1741420856221,0.32947631,86148.0,86147.0,0.1170899]
[1741420858717,0.29177631,86148.0,86147.0,0.1170899]
[1741420859717,0.29177631,86148.0,86147.0,0.1915899]
[1741420860318,0.03353892,86148.0,86147.0,0.1915899]
[1741420860622,0.44053202,86172.0,86155.0,0.0580391]
[1741420860921,0.44053202,86172.0,86166.0,0.1160643]
[1741420860922,7e-08,86167.0,86166.0,0.1160643]
[1741420861225,0.037,86171.0,86166.0,0.1160643]
[1741420861226,0.0378,86171.0,86170.0,0.1160589]
[1741420861526,0.05958891,86171.0,86170.0,0.1160589]
[1741420862123,1e-08,86171.0,86170.0,0.15511637]
[1741420862328,0.00174161,86174.0,86173.0,0.1160549]
[1741420862517,0.29740792,86179.0,86178.0,0.1160481]
[1741420862918,0.3189068,86179.0,86178.0,0.1160481]
[1741420863528,0.3189068,86179.0,86178.0,0.1927481]
[1741420864333,9e-08,86179.0,86178.0,0.56205187]
[1741420864532,0.08915298,86189.0,86188.0,0.1160347]
[1741420864731,0.08915298,86189.0,86188.0,0.2324347]
[1741420865238,0.11015506,86189.0,86188.0,0.2324347]
[1741420865745,0.03539506,86189.0,86188.0,0.2324347]
[1741420866125,0.03539506,86189.0,86188.0,0.2334347]
[1741420866529,0.27021967,86199.0,86198.0,0.1160212]
[1741420866838,0.00012319,86199.0,86198.0,0.1160212]
[1741420867432,0.021961,86199.0,86198.0,0.1926212]
[1741420867633,0.00012319,86199.0,86198.0,0.0387]
[1741420867942,0.1150212,86198.0,86197.0,4e-05]
[1741420868440,0.1160266,86194.0,86193.0,0.3614]
[1741420868740,0.1160266,86194.0,86193.0,0.3608]
[1741420868937,0.19575862,86194.0,86193.0,0.27282769]
[1741420869125,0.1160306,86191.0,86190.0,4e-05]
[1741420869324,0.1160414,86183.0,86182.0,0.0392]
[1741420869737,0.1160441,86181.0,86180.0,0.11621837]
[1741420870434,0.1922441,86181.0,86180.0,0.11621837]
[1741420870940,0.1922441,86181.0,86180.0,0.00017407]
[1741420870941,0.1912441,86181.0,86180.0,0.00017407]
[1741420871245,0.5520441,86181.0,86180.0,0.00017407]
[1741420871541,0.5540441,86181.0,86180.0,0.00017407]
[1741420871742,0.5540441,86181.0,86180.0,0.11621947]
[1741420872536,0.0580278,86173.0,86162.0,0.2505348]
[1741420872728,0.115067,86165.0,86164.0,0.116067]
[1741420872926,0.115067,86165.0,86164.0,0.196667]
[1741420873432,0.115067,86165.0,86164.0,0.0396]
[1741420873639,0.0580325,86166.0,86162.0,0.00877699]
[1741420873640,0.1160683,86163.0,86162.0,0.00877699]
[1741420873944,0.1160697,86162.0,86161.0,0.36148]
[1741420874244,0.1150697,86162.0,86161.0,0.476911]
[1741420874445,0.1150697,86162.0,86161.0,0.476871]
[1741420874835,0.17640512,86162.0,86161.0,0.476871]
[1741420875136,0.005,86163.0,86161.0,0.48556201]
[1741420875339,0.07996,86163.0,86162.0,0.1552697]
[1741420875536,0.07496,86163.0,86162.0,0.1552697]
[1741420876746,0.07517407,86173.0,86172.0,0.1160562]
[1741420876947,0.06356407,86173.0,86172.0,0.1160562]
[1741420877133,0.20104992,86173.0,86172.0,0.1160562]
[1741420877330,0.20104992,86173.0,86172.0,0.1535562]
[1741420877938,0.20804992,86173.0,86172.0,0.1545562]
[1741420878347,0.09199502,86173.0,86172.0,0.1545562]
[1741420878540,0.007,86173.0,86172.0,0.1545562]
[1741420879140,0.00174141,86180.0,86172.0,0.1545562]
[1741420879141,0.00174141,86180.0,86172.0,0.0385]
[1741420879338,0.00174141,86180.0,86179.0,0.1160468]
[1741420879843,0.07504,86189.0,86188.0,0.1160347]
[1741420880143,0.0580122,86196.0,86195.0,0.1160225]
[1741420880349,0.07959026,86196.0,86195.0,0.4768225]
[1741420880849,0.02157806,86196.0,86195.0,0.4768225]
[1741420881148,0.07504,86198.0,86197.0,0.1160225]
[1741420881639,0.00012319,86199.0,86198.0,0.1160212]
[1741420881841,0.00012319,86199.0,86198.0,0.1951212]
[1741420882441,0.02104626,86199.0,86198.0,0.1951212]
[1741420883446,0.02092307,86199.0,86198.0,0.1951212]
[1741420883647,0.04129626,86200.0,86199.0,0.1160199]
[1741420883950,0.04129626,86200.0,86199.0,0.1575199]
[1741420884242,0.04129626,86200.0,86198.0,0.1567212]
[1741420884243,0.06275227,86200.0,86198.0,0.001]
[1741420884446,0.2346199,86199.0,86198.0,0.001]
[1741420884948,0.2336199,86199.0,86198.0,9.244e-05]
[1741420885552,0.2336199,86199.0,86198.0,0.00109244]
[1741420887044,0.3087399,86199.0,86198.0,0.00109244]
[1741420889943,0.3087399,86199.0,86198.0,0.03879244]
[1741420891047,0.3087399,86199.0,86198.0,0.07849244]
[1741420893745,0.24350844,86199.0,86198.0,0.07849244]
[1741420895146,0.24326844,86199.0,86198.0,0.07849244]
[1741420896451,0.17803698,86199.0,86198.0,0.07849244]
[1741420897455,0.17803698,86199.0,86198.0,0.07749244]
[1741420897758,0.17803698,86199.0,86198.0,0.07849244]
[1741420898146,0.17803698,86199.0,86198.0,0.19451364]
[1741420899156,0.07488,86199.0,86198.0,0.19451364]
[1741420899359,0.18597819,86199.0,86198.0,0.19451364]
[1741420902562,0.11117819,86199.0,86198.0,0.19451364]
[1741420902761,0.07472,86199.0,86198.0,0.19451364]
[1741420902960,0.1907399,86199.0,86198.0,0.19451364]
[1741420903558,0.13751227,86200.0,86199.0,0.3084199]
[1741420903763,0.25353077,86200.0,86199.0,0.3886199]
[1741420904359,0.25353077,86200.0,86199.0,0.7494199]
[1741420904755,0.18830838,86200.0,86199.0,0.7494199]
[1741420904953,0.18830838,86200.0,86199.0,0.7504199]
[1741420905154,0.1160185,86200.0,86199.0,0.7504199]
[1741420905358,0.1160185,86200.0,86199.0,0.7504172]
[1741420905861,0.02638849,86200.0,86199.0,0.7504199]
[1741420906061,0.1160177,86201.0,86200.0,0.1160185]
[1741420906264,0.1160177,86201.0,86200.0,0.1934185]
[1741420906450,0.0580073,86203.0,86200.0,0.1934185]
[1741420906451,0.1160145,86204.0,86203.0,0.1160131]
[1741420907467,0.03629846,86204.0,86203.0,0.1170131]
[1741420907652,0.1160166,86204.0,86203.0,0.1170131]
[1741420907857,0.1740231,86204.0,86203.0,0.1170131]
[1741420908855,0.02660433,86205.0,86204.0,0.1160131]
[1741420909057,0.1160096,86207.0,86203.0,0.1170131]
[1741420909257,0.1906496,86207.0,86206.0,0.1160104]
[1741420909562,0.41988021,86214.0,86203.0,0.1170131]
[1741420909563,0.07464,86211.0,86203.0,0.19344]
[1741420909761,0.07464,86211.0,86209.0,0.1160064]
[1741420909963,0.07464,86211.0,86210.0,0.1561051]
[1741420910157,0.4768002,86214.0,86213.0,0.116001]
[1741420910364,0.5514402,86214.0,86213.0,0.116001]
[1741420910564,0.21771085,86214.0,86213.0,0.116001]
[1741420910860,0.14307085,86214.0,86213.0,0.116001]
[1741420911458,0.1160024,86212.0,86211.0,0.0580014]
[1741420911865,0.1150024,86212.0,86211.0,0.0580014]
[1741420912061,0.02707065,86214.0,86211.0,0.0580014]
[1741420912264,0.0579986,86216.0,86213.0,0.116001]
[1741420912472,0.1159998,86214.0,86213.0,0.1159983]
[1741420913267,0.05082662,86214.0,86213.0,0.1159983]
[1741420913667,0.0580386,86216.0,86213.0,0.1159983]
[1741420913862,0.1159998,86214.0,86213.0,0.1159983]
[1741420914066,0.1159998,86214.0,86211.0,0.001]
[1741420914067,0.1160024,86212.0,86211.0,0.001]
[1741420914365,0.4188003,86214.0,86213.0,0.001]
[1741420914567,0.5348,86214.0,86213.0,0.001]
[1741420914754,0.46957834,86214.0,86213.0,0.001]
[1741420915471,0.38986298,86214.0,86213.0,0.001]
[1741420916161,0.174,86214.0,86213.0,0.001]
[1741420918666,0.1160037,86211.0,86210.0,0.04899973]
[1741420920873,0.1160037,86211.0,86210.0,0.04999973]
[1741420921178,0.1160037,86211.0,86210.0,0.09089973]
[1741420921671,0.1160037,86211.0,86210.0,0.00989973]
[1741420922373,0.1160037,86211.0,86210.0,0.04859973]
[1741420930375,0.07444,86211.0,86210.0,0.04859973]
[1741420930583,0.1904437,86211.0,86210.0,0.00989973]
[1741420930776,0.1904437,86211.0,86210.0,0.001]
[1741420931185,0.18548703,86211.0,86210.0,0.001]
[1741420931381,0.19438703,86211.0,86210.0,0.001]
[1741420933984,0.19438703,86211.0,86210.0,0.0429]
[1741420934784,0.27311905,86211.0,86210.0,0.0429]
[1741420935293,0.27311905,86211.0,86210.0,0.0834]
[1741420936182,0.27311905,86211.0,86210.0,0.0429]
[1741420937293,0.27311905,86211.0,86210.0,0.0834]
[1741420940708,0.27311905,86211.0,86210.0,0.1223]
[1741420941297,0.05078692,86199.0,86191.0,4e-05]
[1741420941502,0.05078692,86199.0,86193.0,0.0405]
[1741420941503,0.53993775,86199.0,86193.0,0.0405]
[1741420941704,0.53993775,86199.0,86194.0,0.0409]
[1741420943204,0.1160212,86198.0,86193.0,0.0405]
[1741420943512,0.1160293,86192.0,86191.0,4e-05]
[1741420943713,0.1160374,86186.0,86185.0,0.0389]
[1741420943905,0.1907574,86186.0,86185.0,0.0389]
[1741420944807,0.1907574,86186.0,86185.0,0.0476254]
[1741420945614,0.2733574,86186.0,86185.0,0.0476254]
[1741420946519,0.23905202,86186.0,86159.0,0.36084]
[1741420946713,0.1160643,86166.0,86165.0,0.0403]
[1741420946907,0.1907843,86166.0,86165.0,0.0403]
[1741420947106,0.1897843,86166.0,86165.0,0.0403]
[1741420947316,0.26851632,86166.0,86165.0,0.0403]
[1741420948107,0.30961632,86166.0,86165.0,0.0403]
[1741420948403,0.30961632,86166.0,86165.0,0.0343]
[1741420948605,0.15345202,86166.0,86165.0,0.1503656]
[1741420948803,0.29299208,86166.0,86165.0,0.1503656]
[1741420949205,0.29299208,86166.0,86165.0,0.2295656]
[1741420949403,0.2132391,86166.0,86165.0,0.2295656]
[1741420949607,0.1721348,86166.0,86165.0,0.2295656]
[1741420950116,0.0923832,86166.0,86165.0,0.2295656]
[1741420950316,0.0281832,86166.0,86165.0,0.2295656]
[1741420950520,0.075,86172.0,86165.0,0.1135]
[1741420950714,0.075,86172.0,86171.0,0.1160576]
[1741420950918,0.1910562,86172.0,86171.0,0.1160576]
[1741420951218,0.1910562,86172.0,86171.0,0.1560576]
[1741420951810,0.1910562,86172.0,86171.0,0.04]
[1741420952224,0.21487247,86172.0,86171.0,0.04]
[1741420952429,0.21487247,86172.0,86171.0,0.1560576]
[1741420953115,0.21487247,86172.0,86171.0,0.04]
[1741420953819,0.13987247,86172.0,86171.0,0.1987576]
[1741420957421,0.0601287,86172.0,86171.0,0.3911576]
[1741420957625,0.02381627,86172.0,86171.0,0.3911576]
[1741420957811,0.13987247,86172.0,86171.0,0.3911576]
[1741420958018,0.05820107,86174.0,86171.0,0.3911576]
[1741420958320,0.1160562,86172.0,86171.0,0.3331287]
[1741420961824,0.13910519,86172.0,86171.0,0.3331287]
[1741420966519,0.13910519,86172.0,86171.0,0.6939287]
[1741420968633,0.13910519,86172.0,86171.0,0.3331287]
[1741420968823,0.13910519,86172.0,86171.0,0.6939287]
[1741420971934,0.12749519,86172.0,86171.0,0.3331287]
[1741420972139,0.12749519,86172.0,86171.0,0.6939287]
[1741420974138,0.0477516,86172.0,86171.0,0.6939287]
[1741420974435,0.02304899,86172.0,86171.0,0.6939287]
[1741420974625,0.1160562,86172.0,86171.0,0.3331287]
[1741420974823,0.1160562,86172.0,86171.0,0.6939287]
[1741420975035,0.07182537,86172.0,86171.0,0.6939287]
[1741420976229,0.09553988,86172.0,86171.0,0.6939287]
[1741420978436,0.09553988,86172.0,86171.0,0.3331287]
[1741420978737,0.09553988,86172.0,86171.0,0.6939287]
[1741420982039,0.08392988,86172.0,86171.0,0.6939287]
[1741420982235,0.00418657,86172.0,86171.0,0.6939287]
[1741420982436,0.1160562,86172.0,86171.0,0.6939287]
[1741420982739,0.14020094,86172.0,86171.0,0.6939287]
[1741420983132,0.00108001,86205.0,86171.0,0.6359]
[1741420983344,0.11777553,86190.0,86189.0,0.4768333]
[1741420983546,0.14190845,86190.0,86189.0,0.5172333]
[1741420983743,0.06743292,86190.0,86189.0,0.5599333]
[1741420984143,0.04768912,86191.0,86190.0,0.116032]
[1741420984441,0.04,86197.0,86190.0,0.199532]
[1741420984642,0.17966926,86197.0,86196.0,0.4768239]
[1741420985540,0.17966926,86197.0,86196.0,0.5619239]
[1741420986338,0.22146926,86197.0,86196.0,0.5619239]
[1741420987338,0.26296926,86197.0,86196.0,0.5619239]
[1741420988145,0.19774213,86197.0,86196.0,0.5619239]
[1741420988535,0.02364596,86197.0,86196.0,0.5619239]
[1741420988735,0.00017407,86198.0,86197.0,0.1160225]
[1741420988936,0.00017407,86198.0,86197.0,0.2001225]
[1741420989342,0.02375644,86198.0,86197.0,0.2001225]
[1741420989837,0.13977764,86198.0,86197.0,0.2001225]
[1741420990150,0.06005696,86198.0,86197.0,0.2001225]
[1741420990535,0.02410936,86198.0,86197.0,0.2001225]
[1741420990736,0.1160212,86198.0,86197.0,0.2001225]
[1741420991046,0.0580072,86203.0,86202.0,0.1160158]
[1741420991940,0.0580072,86203.0,86202.0,0.1963158]
[1741420992240,0.02378797,86203.0,86202.0,0.1963158]
[1741420992441,0.0580048,86207.0,86202.0,0.0803]
[1741420992630,0.1740208,86205.0,86204.0,0.1740165]
[1741420993038,0.0580063,86205.0,86204.0,0.1740165]
[1741420993339,0.08173991,86205.0,86204.0,0.1740165]
[1741420995037,0.08173991,86205.0,86204.0,0.2148165]
[1741420997741,0.08173991,86205.0,86204.0,0.4072165]
[1741420998140,0.01651947,86205.0,86204.0,0.4072165]
[1741420998340,0.1160145,86205.0,86204.0,0.2912061]
[1741420999046,0.1160145,86205.0,86204.0,0.29973591]
[1741420999435,0.02311692,86205.0,86204.0,0.29973591]
[1741420999746,0.11774878,86208.0,86207.0,0.1160091]
[1741420999946,0.0404,86218.0,86217.0,0.1159956]
[1741421000144,0.00013008,86219.0,86218.0,0.5193943]
[1741421000338,0.00013008,86219.0,86218.0,0.5618943]
[1741421000647,0.11612298,86219.0,86218.0,0.5618943]
[1741421001835,0.14011184,86219.0,86218.0,0.5618943]
[1741421003148,0.14011184,86219.0,86218.0,0.4034]
[1741421003344,0.14011184,86219.0,86218.0,0.3608]
[1741421003748,0.18161184,86219.0,86218.0,0.3608]
[1741421003941,0.18161184,86219.0,86218.0,0.403]
[1741421004342,0.18161184,86219.0,86218.0,0.5189943]
[1741421006842,0.18161184,86219.0,86218.0,0.403]
[1741421007642,0.18161184,86219.0,86218.0,0.5954]
[1741421007846,0.14011184,86219.0,86218.0,0.5189943]
[1741421008046,0.13998176,86219.0,86218.0,0.5189943]
[1741421008242,0.02398886,86219.0,86218.0,0.51910883]
[1741421008442,0.1159929,86219.0,86218.0,0.57710413]
[1741421008638,0.1159929,86219.0,86218.0,0.40311453]
[1741421009048,0.14579149,86219.0,86218.0,0.40311453]
[1741421009244,0.14579149,86219.0,86218.0,0.51910883]
[1741421010049,0.14579149,86219.0,86218.0,0.55880883]
[1741421011850,0.14579149,86219.0,86218.0,0.44281453]
[1741421012152,0.19059149,86219.0,86218.0,0.44281453]
[1741421012352,0.19059149,86219.0,86218.0,0.08201453]
[1741421012554,0.19059149,86219.0,86218.0,0.44281453]
[1741421013949,0.07459859,86219.0,86218.0,0.44281453]
[1741421014351,0.19059149,86219.0,86218.0,0.44281453]
[1741421016157,0.1108881,86219.0,86218.0,0.44281453]
[1741421017551,0.1108881,86219.0,86218.0,0.55880883]
[1741421018054,0.14011156,86219.0,86218.0,0.55880883]
[1741421018554,0.14011156,86219.0,86218.0,0.60350883]
[1741421019044,0.14011156,86219.0,86218.0,0.44281453]
[1741421019247,0.18091156,86219.0,86218.0,0.55880883]
[1741421021242,0.18691156,86219.0,86218.0,0.55980883]
[1741421021956,0.14611156,86219.0,86218.0,0.55980883]
[1741421022160,0.14611156,86219.0,86218.0,0.19900883]
[1741421022358,0.03522346,86219.0,86218.0,0.55980883]
[1741421022549,0.03522346,86219.0,86218.0,0.60340883]
[1741421022550,0.15121636,86219.0,86218.0,0.60340883]
[1741421023957,0.0580352,86221.0,86218.0,0.60340883]
[1741421023958,0.03974438,86221.0,86218.0,0.60340883]
[1741421024160,0.1159929,86219.0,86218.0,0.71940043]
[1741421025357,0.1159929,86219.0,86218.0,0.55980883]
[1741421025756,0.1159929,86219.0,86218.0,0.44381453]
[1741421026165,0.1575929,86219.0,86218.0,0.55980883]
[1741421028449,0.15767438,86219.0,86218.0,0.55980883]
[1741421028954,0.15767438,86219.0,86218.0,0.44381453]
[1741421029758,0.15767438,86219.0,86218.0,0.55980883]
[1741421030351,0.11607438,86219.0,86218.0,0.55980883]
[1741421030553,0.02188088,86219.0,86218.0,0.55980883]
[1741421030757,8.148e-05,86219.0,86218.0,0.55980883]
[1741421031852,0.11607438,86219.0,86218.0,0.55980883]
[1741421032253,4e-05,86220.0,86218.0,0.55980883]
[1741421032457,0.1159929,86219.0,86218.0,0.55980743]
[1741421033056,4e-05,86220.0,86219.0,0.1159929]
[1741421033461,0.18120615,86221.0,86220.0,0.1159916]
[1741421033764,0.10150435,86221.0,86220.0,0.1159916]
[1741421033964,0.10150435,86221.0,86220.0,0.2007916]
[1741421034655,0.13042325,86221.0,86220.0,0.2007916]
[1741421034855,0.13042325,86221.0,86220.0,0.2812553]
[1741421036355,0.13042325,86221.0,86220.0,0.2822553]
[1741421037264,0.1449098,86221.0,86220.0,0.2822553]
[1741421037768,0.1449098,86221.0,86220.0,0.4736553]
[1741421037963,0.1449098,86221.0,86220.0,0.4746553]
[1741421039367,0.1449098,86221.0,86220.0,0.4736553]
[1741421039671,0.1449098,86221.0,86220.0,0.4746553]
[1741421040366,0.09514897,86221.0,86220.0,0.4746553]
[1741421042160,0.09514897,86221.0,86220.0,0.3941916]
[1741421043471,0.18764897,86221.0,86220.0,0.3941916]
[1741421043874,0.09514897,86221.0,86220.0,0.3941916]
[1741421044863,0.09514897,86221.0,86220.0,0.7549916]
[1741421045265,0.09514897,86221.0,86220.0,0.8354553]
[1741421046273,0.00095581,86221.0,86220.0,0.8354553]
[1741421046464,0.1159909,86221.0,86220.0,0.87592113]
[1741421048174,0.03628903,86221.0,86220.0,0.87592113]
[1741421048373,4e-05,86222.0,86220.0,0.87592113]
[1741421048575,0.1159909,86221.0,86220.0,0.87592113]
[1741421048776,0.1159909,86221.0,86220.0,0.87592155]
[1741421050270,0.02929565,86222.0,86220.0,0.87592155]
[1741421050561,0.14528455,86222.0,86221.0,0.15645785]
[1741421050975,0.14528455,86222.0,86221.0,0.68622155]
[1741421052976,0.14528455,86222.0,86221.0,0.68722155]
[1741421053278,0.05109143,86222.0,86221.0,0.68722155]
[1741421054277,0.08114464,86222.0,86221.0,0.68722155]
[1741421054470,0.03005321,86222.0,86221.0,0.68722155]
[1741421054688,0.12076,86223.0,86221.0,0.68722155]
[1741421054867,0.12076,86223.0,86221.0,0.68722015]
[1741421055072,0.15065665,86223.0,86222.0,0.19885645]